Cogmind - Beta 11 X3 *** ADVENTURER MODE // 2021.03.26 @ 21:16:50 Player: Luigi Panache Result: Destroyed by H-66 Slayer with Gauss Rifle Performance ------------- Evolutions (4) 2000 Regions Visited (19) 3800 Robots Destroyed (110) 550 Value Destroyed (3415) 3415 Prototype IDs (49) 980 Alien Tech Used (0) 0 Bonus (903) 903 TOTAL SCORE: 11648 Bonus ------- Follower Combat Kills 235 Aligned with FarCom 300 Destroyed Z-Imprinter 1000 Friendly Fire -632 Cogmind --------- Core Integrity 0/850 Matter 250/300 Energy 100/100 System Corruption 5% Temperature Cool (0) Movement Core (100) Ox1 Location -6/Hub_04(d) Parts ------- > --- POWER (1) -------- (None) > --- PROPULSION (4) --- Medium Treads > --- UTILITY (8) ------ Armor Integrity Analyzer System Shield > --- WEAPON (2) ------- Improved Lightning Gun > --- INVENTORY (5) ---- Zionite Metafield Generator Peak State ------------ > --- POWER ------------ Zionite Light DM Reactor > --- PROPULSION ------- Zionite Composite Leg I Zionite Glidesys I Zionite Glidesys I Zionite Glidesys II > --- UTILITY ---------- Experimental Heat Sink Small Storage Unit Zionite Metafield Generator Hacking Suite Hacking Suite Makeshift Hacking Suite > --- WEAPON ----------- Zionite Laser-S Ripper > --- INVENTORY -------- Makeshift Power Source Advanced Energy Well Experimental Sensor Array Hacking Suite Phasing AFG Makeshift Shrapnel Gun Proton Missile Launcher Mini Grenade Launcher [Rating: 75] Favorites ----------- Power Deuterium Engine Engine Deuterium Engine Power Core Micro Nuclear Core Reactor Zionite Light DM Reactor Propulsion Light Treads Treads Light Treads Leg Aluminum Leg Hover Unit Improved Gravmag System Flight Unit Improved Flight Unit Utility Hacking Suite Device Zionite Metafield Generator Storage Large Storage Unit Processor Salvage Targeting Computer Hackware Hacking Suite Protection Light Armor Plating Weapon Improved Assault Rifle Energy Gun Medium Laser Ballistic Gun Improved Assault Rifle Launcher Grenade Launcher Impact Weapon Heavy Mace Slashing Weapon Falx Build | -11 -10 -10 -9 -9 -9 -8 -8 -8 -7 -7 -7 -7 -7 -6 -6 -6 -6 -6 -6 ------- Run | Scr Mat Min Mat Min Exi Min Mat Sto Fac Low Low Zio Dee Pro Fac Ext Cet Arc Hub Slots Evolved 8 | . . . 2 . . . 2 . 2 . . . . . 2 . . . . Power . | . . . . . . . . . . . . . . . . . . . . Propulsion 2 | . . . 1 . . . . . 1 . . . . . . . . . . Utility 6 | . . . 1 . . . 2 . 1 . . . . . 2 . . . . Weapon . | . . . . . . . . . . . . . . . . . . . . Parts Attached 161 | . 3 2 18 2 2 . 13 14 13 3 2 1 33 13 19 8 10 1 4 Power 9 | . . . 1 . . . . . 2 . . . 2 2 1 1 . . . Engine 4 | . . . 1 . . . . . 1 . . . . 1 1 . . . . Core 2 | . . . . . . . . . 1 . . . . . . 1 . . . Reactor 3 | . . . . . . . . . . . . . 2 1 . . . . . Propulsion 54 | . . 2 9 . . . 3 3 4 . . . 14 2 10 4 2 1 . Treads 21 | . . 2 8 . . . 3 3 . . . . . . 2 . 2 1 . Leg 8 | . . . . . . . . . . . . . 3 1 . 4 . . . Wheel . | . . . . . . . . . . . . . . . . . . . . Hover 13 | . . . . . . . . . . . . . 6 . 7 . . . . Flight 12 | . . . 1 . . . . . 4 . . . 5 1 1 . . . . Utility 43 | . 2 . 2 . 2 . 2 1 5 . . . 11 6 4 2 4 . 2 Device 12 | . . . . . 1 . . . 2 . . . 5 2 1 1 . . . Storage 9 | . 1 . 1 . 1 . . . 1 . . . 4 1 . . . . . Processor 3 | . . . . . . . . . . . . . . 1 . 1 . . 1 Hackware 14 | . . . 1 . . . 2 1 1 . . . 2 2 2 . 2 . 1 Protection 5 | . 1 . . . . . . . 1 . . . . . 1 . 2 . . Artifact . | . . . . . . . . . . . . . . . . . . . . Weapon 55 | . 1 . 6 2 . . 8 10 2 3 2 1 6 3 4 1 4 . 2 Energy Gun 5 | . . . . . . . 1 1 . . . . 1 . . . . . 2 Energy Cannon . | . . . . . . . . . . . . . . . . . . . . Ballistic Gun 22 | . . . 5 1 . . 3 6 . 1 . . . 2 . . 4 . . Ballistic Cannon . | . . . . . . . . . . . . . . . . . . . . Launcher 15 | . 1 . 1 1 . . 2 3 . 1 1 . 4 1 . . . . . Special Weapon . | . . . . . . . . . . . . . . . . . . . . Impact Weapon 5 | . . . . . . . 2 . 1 1 1 . . . . . . . . Slashing Weapon 8 | . . . . . . . . . 1 . . 1 1 . 4 1 . . . Piercing Weapon . | . . . . . . . . . . . . . . . . . . . . Special Melee Weapon . | . . . . . . . . . . . . . . . . . . . . Unidentified Prototypes 21 | . . . 2 . 1 . 1 2 . . . . 10 1 . . 3 . 1 Corrupted Parts 4 | . . . . . . . . 1 . . . . . 2 . . 1 . . System Corruption 17 | . . . . . . . . 5 . . . . . 10 . . 2 . . Parts Lost 47 | . . . . . . . . 1 . . . . 11 10 3 6 14 . 2 Power 5 | . . . . . . . . . . . . . 1 2 . 1 1 . . Propulsion 17 | . . . . . . . . . . . . . 5 4 . 3 4 . 1 Utility 16 | . . . . . . . . 1 . . . . 3 3 2 2 5 . . Weapon 9 | . . . . . . . . . . . . . 2 1 1 . 4 . 1 Highest Loss Streak 14 | . . . . . . . . 1 . . . . 7 9 3 5 14 . 1 Average Slot Usage (%) 91 | . 99 100 99 100 100 100 94 94 90 93 100 100 91 57 69 87 54 13 30 Engine 7 | . 14 14 11 11 11 11 9 9 5 . . . . 1 . 2 . . . Treads 15 | . . 16 33 33 33 33 27 27 2 . . . . . 1 . 2 13 10 Leg 4 | . 28 11 . . . . . . . . . . 5 4 2 13 7 . . Hover 2 | . . . . . . . . . . . . . 8 . 15 10 . . . Flight 4 | . . . . . . . . . 27 30 30 30 12 10 . . . . . Device 1 | . . . . . . . . . 1 . . . 9 1 . 3 1 . . Storage 11 | . 26 14 11 11 14 22 18 18 8 7 7 7 10 6 2 . . . . Processor 1 | . . . . . . . . . . . . . . 1 6 11 9 . 3 Hackware 16 | . . . 10 11 11 11 22 22 29 30 30 30 24 19 24 27 19 . 3 Protection 4 | . 1 14 11 11 7 . . . 4 7 7 7 . . 1 . 4 . . Energy Gun 3 | . 16 14 8 . . . . . . . . . 1 . . . . . 12 Ballistic Gun 8 | . . . 12 21 22 22 16 11 1 1 7 5 . 5 2 . 2 . . Launcher 2 | . 11 14 1 . . . . 3 . 1 . . 2 . . . . . . Slashing Weapon 2 | . . . . . . . . . 4 4 . 1 4 1 8 12 4 . . Naked Turns 1 | . . . . . . . . . . . . . . . . . 1 . . Heaviest Build 41 | 11 23 21 38 38 39 39 40 41 41 19 19 19 28 15 14 19 20 . 10 Greatest Support 80 | 20 20 40 60 60 60 60 60 69 69 20 20 20 76 28 36 75 80 3 3 Greatest Overweight (x) 7 | . 1 1 . . . . . . . . . . 7 1 1 . 6 . 3 Average Overweight (x) . | . . . . . . . . . . . . . . . . . . . 2 Largest Inventory Capacity 15 | . 10 10 15 15 15 15 15 15 15 8 8 8 8 8 5 5 5 5 5 Average Capacity 10 | . 9 10 12 15 15 15 15 15 8 8 8 8 8 6 5 5 5 5 5 Most Carried 15 | . 10 10 15 15 15 15 15 15 15 8 7 8 8 8 5 5 5 1 1 Average Carried 10 | . 7 9 11 15 14 15 14 14 8 7 4 6 7 5 4 4 3 1 1 Final Capacity 15 | 8 10 10 15 15 15 15 15 15 8 8 8 8 8 5 5 5 5 5 5 Final Carried 15 | 6 10 10 15 15 15 15 15 15 8 7 4 8 8 5 5 5 2 1 1 Class Distribution -------------------- 66% | Hacker-Mutant 17% | Mutant 11% | Hacker-Sprinter 4% | Wizard-Mutant Dominant Class ---------------- Mutant | -10/Materials Mutant | -10/Mines Hacker-Mutant | -9/Materials Hacker-Mutant | -9/Mines Hacker-Mutant | -9/Exiles Hacker-Mutant | -8/Mines Hacker-Mutant | -8/Materials Hacker-Mutant | -8/Storage Hacker-Sprinter | -7/Factory Hacker-Sprinter | -7/Lower Caves Hacker-Sprinter | -7/Lower Caves Hacker-Sprinter | -7/Zion Hacker-Mutant | -7/Deep Caves Hacker-Mutant | -6/Proximity Caves Hacker-Mutant | -6/Factory Hacker-Mutant | -6/Extension Hacker-Mutant | -6/Cetus Mutant | -6/Archives Mutant | -6/Hub_04(d) Resources | -11 -10 -10 -9 -9 -9 -8 -8 -8 -7 -7 -7 -7 -7 -6 -6 -6 -6 -6 -6 ----------- Run | Scr Mat Min Mat Min Exi Min Mat Sto Fac Low Low Zio Dee Pro Fac Ext Cet Arc Hub Matter Collected 2510 | 200 29 54 374 50 . 20 244 144 174 181 95 10 271 207 183 87 187 . . Remotely . | . . . . . . . . . . . . . . . . . . . . Salvage Created 4280 | . 280 . 553 68 . . 382 356 174 37 58 . 615 135 504 752 366 . . Parts 221 | . 19 . 50 5 . . 22 16 3 4 4 . 29 7 15 31 16 . . Haulers Intercepted 5 | . 1 . 3 . . . . 1 . . . . . . . . . . . Recyclers Shooed 4 | . 1 . 1 . . . . . 1 . . . . . . 1 . . . Parts Field Recycled . | . . . . . . . . . . . . . . . . . . . . Retrieved Matter . | . . . . . . . . . . . . . . . . . . . . Parts Self-Destructed 12 | . . . . . . . . . . 1 3 . . 8 . . . . . Prevented 2 | . . . . . . . . . . . . . . 2 . . . . . Kills | -11 -10 -10 -9 -9 -9 -8 -8 -8 -7 -7 -7 -7 -7 -6 -6 -6 -6 -6 -6 ------- Run | Scr Mat Min Mat Min Exi Min Mat Sto Fac Low Low Zio Dee Pro Fac Ext Cet Arc Hub Combat Hostiles Destroyed 77 | . 8 . 11 3 . . 8 9 . 4 4 . 9 4 3 9 5 . . Melee 17 | . . . . . . . . . . 1 . . 3 . 3 9 1 . . Guns 22 | . . . 8 . . . 6 2 . . . . . 2 . . 4 . . AOE 37 | . 8 . 3 3 . . 2 7 . 3 4 . 5 2 . . . . . Classes Destroyed 16 | . 4 . 3 . . . 1 1 1 1 . . 2 1 . 1 1 . . Worker 11 | . . . 2 2 . . 1 2 1 . . . . . 3 . . . . Builder 6 | . . . . . . . . 1 2 . . . . . 2 1 . . . Hauler 5 | . 1 . 3 . . . . 1 . . . . . . . . . . . Recycler 6 | . 2 . . . . . 1 . 1 . . . . . 1 1 . . . Mechanic 1 | . . . . . . . . . 1 . . . . . . . . . . Operator 2 | . . . . . . . 1 . 1 . . . . . . . . . . Watcher 2 | . . . 1 . . . . . . . . . . . 1 . . . . Swarmer 20 | . 3 . 4 . . . 3 . . 3 4 . . 3 . . . . . Grunt 26 | . 5 . 3 3 . . 3 5 . . . . . . 2 5 . . . Brawler 1 | . . . . . . . . . . . . . . . . . 1 . . Sentry 14 | . . . 4 . . . 2 4 . . . . . . 1 3 . . . Hunter 1 | . . . . . . . . . . . . . . 1 . . . . . Cetus Guard 4 | . . . . . . . . . . . . . . . . . 4 . . Enhanced Grunt 1 | . . . . . . . . . . . . . 1 . . . . . . Z-Technician 5 | . . . . . . . . . . . . . 5 . . . . . . Z-Light 7 | . . . . . . . . . . . . . 7 . . . . . . Thief 1 | . . . . . . . . . . 1 . . . . . . . . . Assembled 1 | . . . . . . . . . . . . . 1 . . . . . . Butcher 1 | . . . . . . . . . . . . . . . . 1 . . . Best Kill Streak 8 | . 4 . 4 3 . . 4 8 3 3 4 . 6 4 5 5 3 . . Combat Bots Only 6 | . 3 . 4 3 . . 3 4 . 3 4 . 6 4 2 5 3 . . Max Kills in Single Turn 3 | . 3 . 3 2 . . 3 3 1 1 3 . 2 2 1 1 1 . . Gunslinging 1 | . . . 1 . . . . . . . . . . . . . . . . Exploded 3 | . 2 . 3 2 . . 1 2 . 1 3 . 2 2 . . . . . Melee 1 | . . . . . . . . . . 1 . . 1 . 1 1 1 . . Uniques/NPCs Destroyed 1 | . . . . . . . . . . . . . 1 . . . . . . Z-Imprinter (-7/Deep Caves) Combat | -11 -10 -10 -9 -9 -9 -8 -8 -8 -7 -7 -7 -7 -7 -6 -6 -6 -6 -6 -6 -------- Run | Scr Mat Min Mat Min Exi Min Mat Sto Fac Low Low Zio Dee Pro Fac Ext Cet Arc Hub Damage Taken 8144 | . 221 . 343 58 . . 306 345 190 184 23 . 1068 838 728 394 2600 284 562 Core 1655 | . 13 . 48 . . . 52 39 30 56 23 . 197 334 143 122 418 22 158 Absorbed by Shields 66 | . . . . . . . . . . . . . . . . 35 31 . . Core Remaining (%) 74 | 100 . 94 . . . 88 . 83 . . . . . 8 . . . . . Volleys Fired 162 | . 11 . 38 3 . . 18 23 . 7 2 . 25 5 . . 30 . . Largest 2 | . 1 . 2 1 . . 2 2 . 1 1 . 1 2 . . 1 . . Hottest 73 | . 50 . 73 30 . . 53 46 . 30 30 . 60 47 . . 35 . . Shots Fired 222 | . 11 . 69 3 . . 35 31 . 7 2 . 25 9 . . 30 . . Gun 169 | . 1 . 67 . . . 33 16 . . . . 14 8 . . 30 . . Cannon . | . . . . . . . . . . . . . . . . . . . . Launcher 53 | . 10 . 2 3 . . 2 15 . 7 2 . 11 1 . . . . . Special . | . . . . . . . . . . . . . . . . . . . . Kinetic 128 | . . . 41 . . . 33 16 . . . . . 8 . . 30 . . Thermal 41 | . 1 . 26 . . . . . . . . . 14 . . . . . . Explosive 46 | . 10 . 2 3 . . 2 13 . 7 2 . 7 . . . . . . Electromagnetic 7 | . . . . . . . . 2 . . . . 4 1 . . . . . Robot Hit Streak 45 | . 11 . 21 17 . . 24 45 . 12 14 . 16 9 . . 26 . . Robot Miss Streak 2 | . . . 2 . . . 1 1 . . . . 1 1 . . 2 . . Penetration Max . | . . . . . . . . . . . . . . . . . . . . Secondary Targets 2 | . . . 1 . . . . . . . . . . 1 . . . . . Max Gunslinging Chain 1 | . . . 1 . . . . . . . . . . 1 . . . . . Shots Hit Robots 284 | . 11 . 56 3 . . 32 26 14 13 5 . 34 8 28 26 28 . . Core Hits 174 | . 15 . 26 6 . . 17 26 3 4 5 . 24 9 12 11 16 . . Critical Hits 9 | . . . . . . . . . 1 . . . . . 1 3 4 . . Critical Kills 5 | . . . . . . . . . . . . . . . 1 2 2 . . Critical Parts Destroyed 4 | . . . . . . . . . 1 . . . . . . 1 2 . . Melee Attacks 142 | . . . . . . . 3 . 14 7 6 . 35 1 33 41 2 . . Impact 16 | . . . . . . . 3 . 3 . 6 . 4 . . . . . . Slashing 126 | . . . . . . . . . 11 7 . . 31 1 33 41 2 . . Piercing . | . . . . . . . . . . . . . . . . . . . . Sneak Attacks 28 | . . . . . . . . . 5 . . . 7 . 9 7 . . . Combat Hostiles . | . . . . . . . . . . . . . . . . . . . . Follow-up Attacks 8 | . . . . . . . . . . . . . 1 . 4 2 1 . . Damage Inflicted 13448 | . 694 . 913 313 . . 645 1086 1107 716 351 . 2826 185 1930 1865 817 . . Guns 2196 | . 12 . 699 . . . 459 181 . . . . . 120 . . 725 . . Cannons . | . . . . . . . . . . . . . . . . . . . . Explosions 3822 | . 682 . 209 294 . . 126 898 . 411 241 . 897 64 . . . . . Melee 7379 | . . . . . . . 44 . 1107 305 110 . 1929 . 1930 1862 92 . . Ramming 51 | . . . 5 19 . . 16 7 . . . . . 1 . 3 . . . Kinetic 1936 | . . . 451 . . . 459 181 . . . . . 120 . . 725 . . Thermal 260 | . 12 . 248 . . . . . . . . . . . . . . . . Explosive 3444 | . 682 . 209 294 . . 126 761 . 411 241 . 720 . . . . . . Electromagnetic 378 | . . . . . . . . 137 . . . . 177 64 . . . . . Impact 396 | . . . . . . . 44 . 157 . 110 . 85 . . . . . . Slashing 6983 | . . . . . . . . . 950 305 . . 1844 . 1930 1862 92 . . Piercing . | . . . . . . . . . . . . . . . . . . . . Highest Corruption 10 | . . . 1 1 1 1 . 5 . . . . . 10 1 1 5 5 5 Average Corruption 1 | . . . 1 1 1 1 . 5 . . . . . 9 1 1 2 5 5 Corruption Purged . | . . . . . . . . . . . . . . . . . . . . Effects 18 | . . . . 3 . . . 2 . . . . . 5 . 2 2 . 4 Message Errors 4 | . . . . 1 . . . . . . . . . 1 . 2 . . . Matter Fused 2 | . . . . . . . . . . . . . . 1 . . 1 . . Heat Flow Errors 4 | . . . . . . . . . . . . . . 1 . . . . 3 Energy Discharges 1 | . . . . . . . . . . . . . . 1 . . . . . Data Loss (minor) 6 | . . . . 2 . . . 2 . . . . . . . . 1 . 1 Misdirections 1 | . . . . . . . . . . . . . . 1 . . . . . Overload Shots . | . . . . . . . . . . . . . . . . . . . . Overflow Damage 1897 | . . . . . . . . 21 248 100 10 . 429 . 515 574 . . . Projectiles . | . . . . . . . . . . . . . . . . . . . . Explosions 54 | . . . . . . . . 21 . 26 . . 7 . . . . . . Melee 1843 | . . . . . . . . . 248 74 10 . 422 . 515 574 . . . Knockbacks 4 | . . . . . . . 1 . 2 . . . 1 . . . . . . Impact 4 | . . . . . . . 1 . 2 . . . 1 . . . . . . Kinetic . | . . . . . . . . . . . . . . . . . . . . Secondary . | . . . . . . . . . . . . . . . . . . . . Self-Inflicted Damage 256 | . 163 . . . . . 23 12 . 12 . . 28 18 . . . . . Shots 11 | . 6 . . . . . 1 1 . 1 . . 1 1 . . . . . Rammed 4 | . . . 1 . . . 1 2 . . . . . . . . . . . Targets Rammed 9 | . . . 1 2 . . 2 2 . . . . . 1 . 1 . . . Kicked 2 | . . . . . . . . . . . . . . 1 . 1 . . . Crushed 3 | . . . . 2 . . 1 . . . . . . . . . . . . Highest Temperature 439 | . 10 . 439 5 . . . 8 7 . . . 248 211 13 . 6 . 200 Average Temperature 83 | . 3 . 66 3 . . . 4 7 . . . 97 117 13 . 3 . 90 Received Heat Transfer 2181 | . 36 . 120 42 . . 171 135 102 . . . 345 . 327 156 540 81 126 Effects 2 | . . . 1 . . . . . . . . . 1 . . . . . . Shutdowns 1 | . . . 1 . . . . . . . . . . . . . . . . Interference 1 | . . . . . . . . . . . . . 1 . . . . . . Siege Activations . | . . . . . . . . . . . . . . . . . . . . Robots Corrupted 1 | . . . . . . . . . . . . . 1 . . . . . . Combat Hostiles 1 | . . . . . . . . . . . . . 1 . . . . . . Parts Fried 8 | . . . . . . . . . 3 . . . 3 . . . 2 . . Impact Corruptions 5 | . . . . . . . . . 3 . 1 . 1 . . . . . . Robots Melted . | . . . . . . . . . . . . . . . . . . . . Combat Hostiles . | . . . . . . . . . . . . . . . . . . . . Parts Melted . | . . . . . . . . . . . . . . . . . . . . Heat Transferred 777 | . 37 . 740 . . . . . . . . . . . . . . . . Parts Sabotaged . | . . . . . . . . . . . . . . . . . . . . Parts Stolen 3 | . . . . . . . . . . . 3 . . . . . . . . Parts Stripped . | . . . . . . . . . . . . . . . . . . . . Power Chain Reactions 1 | . . . . . . . . 1 . . . . . . . . . . . Missiles Intercepted . | . . . . . . . . . . . . . . . . . . . . Alert | -11 -10 -10 -9 -9 -9 -8 -8 -8 -7 -7 -7 -7 -7 -6 -6 -6 -6 -6 -6 ------- Run | Scr Mat Min Mat Min Exi Min Mat Sto Fac Low Low Zio Dee Pro Fac Ext Cet Arc Hub Peak Influence 559 | . 242 13 249 90 . . 151 303 142 . . . . . 559 129 60 80 43 Initial 48 | . . 13 . 15 . . . 5 29 . . . . . 40 48 44 20 23 Average 84 | . 92 5 134 50 . . 69 149 71 . . . . . 244 40 31 53 29 Maximum Alert Level 2 | . 1 . 1 . . . . 1 . . . . . . 2 . . . . Low Security (%) 90 | . 90 100 94 100 . 100 100 59 100 . . . . . 49 100 100 100 100 Level 1 7 | . 9 . 5 . . . . 40 . . . . . . 27 . . . . Level 2 2 | . . . . . . . . . . . . . . . 22 . . . . Level 3 . | . . . . . . . . . . . . . . . . . . . . Level 4 . | . . . . . . . . . . . . . . . . . . . . Level 5 . | . . . . . . . . . . . . . . . . . . . . High Security . | . . . . . . . . . . . . . . . . . . . . Max Security . | . . . . . . . . . . . . . . . . . . . . Squads Dispatched 13 | . 1 1 . . . . 3 1 2 . . . . . 3 1 . . 1 Investigation 6 | . 1 1 . . . . . . 2 . . . . . 1 1 . . . Extermination . | . . . . . . . . . . . . . . . . . . . . Reinforcement 7 | . . . . . . . 3 1 . . . . . . 2 . . . 1 Assault . | . . . . . . . . . . . . . . . . . . . . Garrison . | . . . . . . . . . . . . . . . . . . . . Intercept . | . . . . . . . . . . . . . . . . . . . . Construction Impeded 1 | . . . . . . . . 1 . . . . . . . . . . . Haulers Reinforced . | . . . . . . . . . . . . . . . . . . . . Stealth | -11 -10 -10 -9 -9 -9 -8 -8 -8 -7 -7 -7 -7 -7 -6 -6 -6 -6 -6 -6 --------- Run | Scr Mat Min Mat Min Exi Min Mat Sto Fac Low Low Zio Dee Pro Fac Ext Cet Arc Hub Distress Signals 3 | . . . . . . . . . . . . . . . 1 1 1 . . Communications Jammed . | . . . . . . . . . . . . . . . . . . . . Distress Signals . | . . . . . . . . . . . . . . . . . . . . Times Spotted 152 | . 8 . 14 6 . . 14 13 3 4 9 . 21 10 17 14 11 4 4 Peak Tracking Total 8 | . 3 . 4 3 . . 4 5 2 3 4 . 6 5 8 3 8 4 4 Tactical Retreats 13 | . . . 1 . . . . . 1 . . . 3 2 4 1 1 . . Traps | -11 -10 -10 -9 -9 -9 -8 -8 -8 -7 -7 -7 -7 -7 -6 -6 -6 -6 -6 -6 ------- Run | Scr Mat Min Mat Min Exi Min Mat Sto Fac Low Low Zio Dee Pro Fac Ext Cet Arc Hub Traps Triggered 6 | . 1 . 1 . . . . 2 . . . . . . . 2 . . . Indirectly . | . . . . . . . . . . . . . . . . . . . . Trap Hack Attempts . | . . . . . . . . . . . . . . . . . . . . Triggered . | . . . . . . . . . . . . . . . . . . . . Disarmed . | . . . . . . . . . . . . . . . . . . . . Reprogrammed . | . . . . . . . . . . . . . . . . . . . . Reused . | . . . . . . . . . . . . . . . . . . . . Traps Extracted . | . . . . . . . . . . . . . . . . . . . . Installed . | . . . . . . . . . . . . . . . . . . . . Triggered . | . . . . . . . . . . . . . . . . . . . . Machines | -11 -10 -10 -9 -9 -9 -8 -8 -8 -7 -7 -7 -7 -7 -6 -6 -6 -6 -6 -6 ---------- Run | Scr Mat Min Mat Min Exi Min Mat Sto Fac Low Low Zio Dee Pro Fac Ext Cet Arc Hub Machines Disabled 5 | . 3 . . . . . . 1 . . . . 1 . . . . . . Max in Single Turn 2 | . 2 . . . . . . 1 . . . . 1 . . . . . . Energy Cycler 2 | . . . . . . . . . . . . . . . . 2 . . . Machines Sabotaged . | . . . . . . . . . . . . . . . . . . . . Garrisons Compromised . | . . . . . . . . . . . . . . . . . . . . Overloaded Fab Kills . | . . . . . . . . . . . . . . . . . . . . Fab Network Shutdowns 1 | . . . . . . . . . . . . . . . 1 . . . . Hacking | -11 -10 -10 -9 -9 -9 -8 -8 -8 -7 -7 -7 -7 -7 -6 -6 -6 -6 -6 -6 --------- Run | Scr Mat Min Mat Min Exi Min Mat Sto Fac Low Low Zio Dee Pro Fac Ext Cet Arc Hub Machines Accessed 33 | . 5 1 2 . 2 . 1 4 4 . . 1 . . 5 7 . . 1 Terminals 22 | . 5 . 1 . . . 1 3 2 . . . . . 2 7 . . 1 Fabricators 3 | . . . . . . . . . 1 . . . . . 2 . . . . Repair Stations 3 | . . . . . . . . 1 1 . . . . . 1 . . . . Recycling Units 1 | . . . 1 . . . . . . . . . . . . . . . . Scanalyzers . | . . . . . . . . . . . . . . . . . . . . Garrison Access . | . . . . . . . . . . . . . . . . . . . . Total Hacks 116 | . 10 1 7 . 2 . 3 11 10 . . 7 . . 26 38 . . 1 Successful 90 | . 4 1 6 . 2 . 3 7 6 . . 7 . . 21 33 . . . Failed 24 | . 6 . 1 . . . . 4 4 . . . . . 4 4 . . 1 Catastrophic 6 | . 3 . . . . . . 1 . . . . . . . 1 . . 1 Database Lockouts 2 | . . . . . . . . . . . . . . . 1 1 . . . Manual 77 | . 8 . 4 . 1 . 3 7 3 . . 5 . . 15 30 1 . . Terminals 84 | . 10 . 4 . . . 3 9 4 . . . . . 15 38 . . 1 Fabricators 9 | . . . . . . . . . 2 . . . . . 7 . . . . Repair Stations 10 | . . . . . . . . 2 4 . . . . . 4 . . . . Recycling Units 3 | . . . 3 . . . . . . . . . . . . . . . . Scanalyzers . | . . . . . . . . . . . . . . . . . . . . Garrison Access . | . . . . . . . . . . . . . . . . . . . . Terminal Hacks 59 | . 4 1 2 . 2 . 2 5 3 . . 7 . . 9 24 . . . Record 1 | . . . . . 1 . . . . . . . . . . . . . . Part Schematic 15 | . 2 . . . . . . . 1 . . 7 . . 2 3 . . . Robot Analysis 3 | . . . . . . . . . . . . . . . . 3 . . . Prototype ID Bank 2 | . . . . . . . . . . . . . . . . 2 . . . Open Door 4 | . . 1 . . . . . 2 . . . . . . . 1 . . . Level Access Points 2 | . . . . . . . 1 1 . . . . . . . . . . . Branch Access Points 5 | . . . 1 . . . 1 . 2 . . . . . 1 . . . . Terminal Index 2 | . . . 1 . . . . . . . . . . . . 1 . . . Fabricator Index 1 | . . . . . . . . . . . . . . . 1 . . . . Alert Level 3 | . . . . . . . . . . . . . . . 1 2 . . . Unreport Threat 11 | . . . . . . . . 2 . . . . . . 3 6 . . . Maintenance Status 1 | . . . . . . . . . . . . . . . . 1 . . . Assault Status 1 | . . . . . . . . . . . . . . . . 1 . . . Zone Layout 7 | . 2 . . . . . . . . . . . . . 1 4 . . . EX-Prototype ID Bank 1 | . . . . . 1 . . . . . . . . . . . . . . Fabricator Hacks 7 | . . . . . . . . . 2 . . . . . 5 . . . . Load Schematic 2 | . . . . . . . . . 1 . . . . . 1 . . . . Build 5 | . . . . . . . . . 1 . . . . . 4 . . . . Repair Station Hacks 7 | . . . . . . . . 2 1 . . . . . 4 . . . . Scan Component 4 | . . . . . . . . 1 1 . . . . . 2 . . . . Repair 3 | . . . . . . . . 1 . . . . . . 2 . . . . Recycling Unit Hacks . | . . . . . . . . . . . . . . . . . . . . Scanalyzer . | . . . . . . . . . . . . . . . . . . . . Garrison Access Hacks . | . . . . . . . . . . . . . . . . . . . . Unauthorized Hacks 17 | . . . 4 . . . 1 . . . . . . . 3 9 . . . Terminals 12 | . . . 1 . . . 1 . . . . . . . 1 9 . . . Track 2 | . . . . . . . . . . . . . . . . 2 . . . Assimilate 2 | . . . . . . . . . . . . . . . . 2 . . . Botnet 7 | . . . 1 . . . 1 . . . . . . . 1 4 . . . Operators 1 | . . . . . . . . . . . . . . . . 1 . . . Fabricators 2 | . . . . . . . . . . . . . . . 2 . . . . Prioritize 2 | . . . . . . . . . . . . . . . 2 . . . . Repair Stations . | . . . . . . . . . . . . . . . . . . . . Recycling Units 3 | . . . 3 . . . . . . . . . . . . . . . . Monitor 1 | . . . 1 . . . . . . . . . . . . . . . . Recyclers 1 | . . . 1 . . . . . . . . . . . . . . . . Mask 1 | . . . 1 . . . . . . . . . . . . . . . . Scanalyzers . | . . . . . . . . . . . . . . . . . . . . Garrison Access . | . . . . . . . . . . . . . . . . . . . . Data Cores Recovered 1 | . . . . . . . . . 1 . . . . . . . . . . Used . | . . . . . . . . . . . . . . . . . . . . Hacking Detections 25 | . 5 . 2 . . . 1 3 4 . . . . . 4 5 . . 1 Full Trace Events 5 | . 1 . . . . . . . 2 . . . . . 1 1 . . . Feedback Events 1 | . . . . . . . . . . . . . . . . 1 . . . Hackware Fried 1 | . . . . . . . . . . . . . . . . 1 . . . Feedback Blocked . | . . . . . . . . . . . . . . . . . . . . Robot Schematics Acquired . | . . . . . . . . . . . . . . . . . . . . Robots Built . | . . . . . . . . . . . . . . . . . . . . Matter . | . . . . . . . . . . . . . . . . . . . . Time . | . . . . . . . . . . . . . . . . . . . . Total Robot Build Rating . | . . . . . . . . . . . . . . . . . . . . Part Schematics Acquired 14 | . 2 . . . . . . . 1 . . 7 . . 2 2 . . . Parts Built 5 | . . . . . . . . . 1 . . . . . 4 . . . . Matter 672 | . . . . . . . . . 102 . . . . . 570 . . . . Time 142 | . . . . . . . . . 25 . . . . . 117 . . . . Total Part Build Rating 21 | . . . . . . . . . 1 . . . . . 20 . . . . Parts Repaired 3 | . . . . . . . . 1 . . . . . . 2 . . . . Time 138 | . . . . . . . . 108 . . . . . . 30 . . . . Parts Recycled . | . . . . . . . . . . . . . . . . . . . . Recycled Matter . | . . . . . . . . . . . . . . . . . . . . Retrieved Matter . | . . . . . . . . . . . . . . . . . . . . Retrieved Components . | . . . . . . . . . . . . . . . . . . . . Parts Scanalyzed . | . . . . . . . . . . . . . . . . . . . . Part Schematics Acquired . | . . . . . . . . . . . . . . . . . . . . Parts Damaged . | . . . . . . . . . . . . . . . . . . . . Bothacking | -11 -10 -10 -9 -9 -9 -8 -8 -8 -7 -7 -7 -7 -7 -6 -6 -6 -6 -6 -6 ------------ Run | Scr Mat Min Mat Min Exi Min Mat Sto Fac Low Low Zio Dee Pro Fac Ext Cet Arc Hub Used RIF Installer . | . . . . . . . . . . . . . . . . . . . . Robots Hacked . | . . . . . . . . . . . . . . . . . . . . Non-combat . | . . . . . . . . . . . . . . . . . . . . Combat . | . . . . . . . . . . . . . . . . . . . . Robot Hacks Applied . | . . . . . . . . . . . . . . . . . . . . Relay Couplers Released . | . . . . . . . . . . . . . . . . . . . . Robots Rewired 7 | . . . . . . . . . . . . . . . . 7 . . . Allies Hacked . | . . . . . . . . . . . . . . . . . . . . Hacks Repelled . | . . . . . . . . . . . . . . . . . . . . Allies | -11 -10 -10 -9 -9 -9 -8 -8 -8 -7 -7 -7 -7 -7 -6 -6 -6 -6 -6 -6 -------- Run | Scr Mat Min Mat Min Exi Min Mat Sto Fac Low Low Zio Dee Pro Fac Ext Cet Arc Hub Total Allies 18 | . . 1 . 3 . . . . . . . 2 . . . 12 . . . Largest Group 7 | . . 1 . 3 1 1 . . . . . 2 2 . . 7 6 . . Highest-Rated Group 308 | . . 31 . 40 8 8 . . . . . 190 190 . . 308 288 . . Highest-Rated Ally 150 | . . 31 . 16 8 8 . . . . . 95 95 . . 150 150 . . Total Orders . | . . . . . . . . . . . . . . . . . . . . Ally Attacks 110 | . . . . 22 . . . . . . . . 36 . . 33 19 . . Total Damage 2008 | . . . . 280 . . . . . . . . 772 . . 591 365 . . Kills 8 | . . . . 3 . . . . . . . . 1 . . 4 . . . Allies Corrupted 1 | . . . . . . . . . . . . . . . . 1 . . . Allies Melted . | . . . . . . . . . . . . . . . . . . . . Intel | -11 -10 -10 -9 -9 -9 -8 -8 -8 -7 -7 -7 -7 -7 -6 -6 -6 -6 -6 -6 ------- Run | Scr Mat Min Mat Min Exi Min Mat Sto Fac Low Low Zio Dee Pro Fac Ext Cet Arc Hub Robot Analysis Total 3 | . . . . . . . . . . . . . . . . 3 . . . Derelict Logs Recovered 6 | . . 2 . 1 . . . . . 1 . 2 . . . . . . . Drone Launches . | . . . . . . . . . . . . . . . . . . . . Drone Recoveries . | . . . . . . . . . . . . . . . . . . . . Exploration | -11 -10 -10 -9 -9 -9 -8 -8 -8 -7 -7 -7 -7 -7 -6 -6 -6 -6 -6 -6 ------------- Run | Scr Mat Min Mat Min Exi Min Mat Sto Fac Low Low Zio Dee Pro Fac Ext Cet Arc Hub Turns Passed 8561 | . 403 921 809 912 522 119 898 534 204 135 119 236 1105 180 599 514 177 22 152 Spaces Moved 6846 | 1 194 523 285 533 323 75 232 216 392 294 301 664 1287 248 654 404 94 42 84 Core 265 | . . . . . . . . . . . . . 14 11 55 . 59 42 84 Treads 2007 | . . 330 285 533 323 75 232 216 7 . . . . . . . 6 . . Legs 841 | 1 194 193 . . . . . . . . . . 229 14 . 181 29 . . Wheels . | . . . . . . . . . . . . . . . . . . . . Hover 962 | . . . . . . . . . . . . . 207 . 532 223 . . . Flight 2771 | . . . . . . . . . 385 294 301 664 837 223 67 . . . . Fastest Speed 17 | 120 120 160 160 160 160 160 160 160 31 31 31 31 17 17 48 48 50 50 50 Average Speed 91 | 120 192 174 160 160 160 160 160 160 33 31 31 31 50 52 63 80 92 50 173 Slowest Speed 390 | 120 200 200 160 160 160 160 160 160 160 31 31 31 390 125 100 120 350 50 200 Overloaded Moves . | . . . . . . . . . . . . . . . . . . . . Propulsion Burnouts . | . . . . . . . . . . . . . . . . . . . . Robots Hopped 1 | . . . . . . . . . . . . . . 1 . . . . . Cave-ins Triggered 1 | . . . . . . . . . . . . . . . . 1 . . . Exploration Rate (%) 46 | 2 40 92 19 87 70 27 28 46 10 51 59 71 79 45 15 62 56 65 15 Regions Visited 19 Branch Regions 14 Pre-discovered Areas 6 | . . 1 . . 1 . . . . 1 . 3 . . . . . . . Known Exits Taken 5 | . . . 1 . . . 1 1 1 . . . . . 1 . . . . Unknown Exits Taken 14 | 1 1 1 . 1 1 1 . . . 1 1 1 1 1 . 1 1 1 . Scrap Searched 10 | . . 1 . 2 . 1 . . . 1 1 2 . 2 . . . . . Spaces Dug 35 | . . . . . . . 2 10 . . . . 7 . 5 11 . . . Terrain Destroyed 319 | . 45 . 18 32 . . 22 63 . 43 19 . 51 . 5 11 10 . . Melee 18 | . . . . . . . 2 . . . . . . . 5 11 . . . Projectile 19 | . . . . . . . . . . . . . 9 . . . 10 . . AOE 282 | . 45 . 18 32 . . 20 63 . 43 19 . 42 . . . . . . Terrain Rammed . | . . . . . . . . . . . . . . . . . . . . Walls Destroyed . | . . . . . . . . . . . . . . . . . . . . Machines Disabled . | . . . . . . . . . . . . . . . . . . . . Actions | -11 -10 -10 -9 -9 -9 -8 -8 -8 -7 -7 -7 -7 -7 -6 -6 -6 -6 -6 -6 --------- Run | Scr Mat Min Mat Min Exi Min Mat Sto Fac Low Low Zio Dee Pro Fac Ext Cet Arc Hub Total 8692 | . 213 534 579 587 329 74 717 374 438 315 310 694 1666 283 784 519 146 42 88 Wait 1238 | . . 1 204 48 1 . 440 108 5 4 . 21 270 11 74 39 12 . . Move 6825 | . 193 522 284 532 322 74 231 215 391 293 300 663 1286 245 653 403 93 41 84 Hop 1 | . . . . . . . . . . . . . . 1 . . . . . Pick Up 42 | . 4 4 15 . 1 . 3 3 2 . . 6 1 1 . 2 . . . Fast Attach 83 | . 2 . 2 . 1 . 3 5 2 1 . 1 22 8 15 8 9 . 4 Attach 23 | . . 2 2 . 1 . 1 . 3 1 . . 5 4 2 . 1 1 . Detach 17 | . 1 1 . . 1 . . . 3 . . . 5 3 3 . . . . Swap 55 | . 1 . 14 2 . . 9 9 8 1 2 . 6 1 2 . . . . Drop 83 | . 1 4 19 . 2 . 7 9 10 1 . 3 15 2 6 4 . . . Fire 162 | . 11 . 38 3 . . 18 23 . 7 2 . 25 5 . . 30 . . Melee 127 | . . . . . . . 3 . 14 7 6 . 31 1 29 35 1 . . Ram . | . . . . . . . . . . . . . . . . . . . . Kick 2 | . . . . . . . . . . . . . . 1 . 1 . . . Crush 7 | . . . 1 2 . . 2 2 . . . . . . . . . . . Escape Stasis . | . . . . . . . . . . . . . . . . . . . . Rewire 27 | . . . . . . . . . . . . . . . . 27 . . . Trap . | . . . . . . . . . . . . . . . . . . . . Miscellaneous . | . . . . . . . . . . . . . . . . . . . . Route ------- -11/Scrapyard -10/Materials (discovered 2 exits: *Mat / *Min) -10/Mines (discovered 2 exits: *Mat x2) -9/Materials (discovered 2 exits: *Min x2) -9/Mines (discovered 3 exits: *Mat x2 / *Exi) -9/Exiles -8/Mines -8/Materials (discovered 5 exits: Fac x3 / *Sto x2) -8/Storage -7/Factory (discovered 3 exits: *Fac / *Low x2) -7/Lower Caves -7/Lower Caves -7/Zion -7/Deep Caves -6/Proximity Caves -6/Factory (discovered 4 exits: Low x2 / *Ext x2) -6/Extension (discovered 2 exits: [*Fac] / *Cet) -6/Cetus -6/Archives -6/Hub_04(d) History --------- Turn | Location | Event 1 | -11/Scrapyard | Discovered new exit (range 0) 1 | -11/Scrapyard | Entered Materials 202 | -10/Materials | Discovered new exit (range 16) 311 | -10/Materials | Build established: Mutant 334 | -10/Materials | Discovered new exit (range 19) 404 | -10/Materials | Entered Mines 498 | -10/Mines | Discovered new exit (range 13) 664 | -10/Mines | Discovered new exit (range 8) 712 | -10/Mines | Learned Materials stockpile data 788 | -10/Mines | Found a damaged Exp. Sensor Array with a note attached 796 | -10/Mines | Found Prototype Device 932 | -10/Mines | Met a Derelict shopkeep closing up shop 1003 | -10/Mines | Received a Mining Laser from a helpful Derelict 1325 | -10/Mines | Entered Materials 1325 | -9/Materials | Evolved 2 slots: Propulsion x1, Utility x1 1679 | -9/Materials | Build established: Hacker-Mutant 2079 | -9/Materials | Identified exit to Mines 2134 | -9/Materials | Entered Mines 2161 | -9/Mines | Met a Derelict bent on vengeance 2230 | -9/Mines | Assisted by bots powering up and referring to "LRC-V3" 2403 | -9/Mines | Learned location of 1 exit from Materials 2406 | -9/Mines | Discovered new exit (range 7) 2439 | -9/Mines | Deemed a non-threat by the Exiles lab entrance 2439 | -9/Mines | Discovered new exit (range 5) 2747 | -9/Mines | Discovered new exit (range 15) 2793 | -9/Mines | A weapon hastily lodged in a ceiling crevice suddenly fell to the ground 3046 | -9/Mines | Entered Exiles 3046 | -9/Exiles | Accompanied by 1 ally 3086 | -9/Exiles | Met 8R-AWN 3112 | -9/Exiles | Met EX-HEX 3192 | -9/Exiles | Met EX-DEC 3277 | -9/Exiles | Learned location of Zion (-7) 3310 | -9/Exiles | Met EX-BIN 3333 | -9/Exiles | Aligned with FarCom system 3334 | -9/Exiles | Given EX-Vault access code 3371 | -9/Exiles | Opened EX-Vault 3388 | -9/Exiles | Identified Exp. Sensor Array 3389 | -9/Exiles | Found Superbattery 3396 | -9/Exiles | Found Cloak of Protection 3432 | -9/Exiles | Warned to stay clear of 0b10 Research branches 3544 | -9/Exiles | Discovered new exit (range 14) 3568 | -9/Exiles | Stole two prototypes: Superbattery, Cloak of Protection 3568 | -9/Exiles | Entered Mines 3568 | -8/Mines | Accompanied by 1 ally 3669 | -8/Mines | Discovered new exit (range 12) 3687 | -8/Mines | Entered Materials 3687 | -8/Materials | Evolved 2 slots: Utility x2 3688 | -8/Materials | Identified exit to Factory 4134 | -8/Materials | Identified exit to Storage 4585 | -8/Materials | Entered Storage 4929 | -8/Storage | Repaired Exp. Sensor Array 5119 | -8/Storage | Entered Factory 5119 | -7/Factory | Evolved 2 slots: Propulsion x1, Utility x1 5121 | -7/Factory | FarCom data flow suspended 5132 | -7/Factory | Identified exit to Lower Caves 5252 | -7/Factory | Discovered new exit (range 4) 5275 | -7/Factory | Fabricated Huge Storage Unit? 5323 | -7/Factory | Entered Lower Caves 5449 | -7/Lower Caves | Build established: Hacker-Sprinter 5454 | -7/Lower Caves | Discovered new exit (range 10) 5458 | -7/Lower Caves | Entered another Lower Caves area 5458 | -7/Lower Caves | Spotted MO-70T(f) 5458 | -7/Lower Caves | Spotted DM-NXP(f) 5459 | -7/Lower Caves | Encountered a Master Thief 5459 | -7/Lower Caves | Encountered a Master Thief 5459 | -7/Lower Caves | Cloak of Protection stolen by Master Thief 5467 | -7/Lower Caves | Spotted C4-AP5(f) 5467 | -7/Lower Caves | Superbattery stolen by Master Thief 5468 | -7/Lower Caves | Encountered a Master Thief 5470 | -7/Lower Caves | Mic. Nuclear Core stolen by Master Thief 5542 | -7/Lower Caves | Encountered a Warlord checkpoint 5565 | -7/Lower Caves | Discovered new exit (range 15) 5577 | -7/Lower Caves | Entered Zion 5595 | -7/Zion | Given A8's code to call for help 5621 | -7/Zion | Acquired unknown access codes intercepted by a Zionite 5643 | -7/Zion | Found Prototype Device 5667 | -7/Zion | Learned location of Data Miner (-6) 5668 | -7/Zion | Learned location of Quarantine (-2) 5699 | -7/Zion | Opened final containment barrier to the Deep Caves 5743 | -7/Zion | Found Prototype Device 5749 | -7/Zion | Learned Factory garrison access intel 5798 | -7/Zion | Enhanced Grunt warped into view, answering call for help 5798 | -7/Zion | Enhanced Grunt warped into view, answering call for help 5800 | -7/Zion | Discovered new exit (range 3) 5800 | -7/Zion | Saw the warning signs outside the Deep Caves entrance 5813 | -7/Zion | Entered Deep Caves 5813 | -7/Deep Caves | Accompanied by 2 allies 5862 | -7/Deep Caves | Attacked by Z-Imprinter 5878 | -7/Deep Caves | Destroyed Z-Imprinter 5908 | -7/Deep Caves | Found Prototype Device 5908 | -7/Deep Caves | Identified Zio. Metafield Generator 5929 | -7/Deep Caves | Lost 3 parts (1n2u) 6033 | -7/Deep Caves | Z-Facility disabled 6412 | -7/Deep Caves | Lost 7 parts (1p3n1u2w) 6593 | -7/Deep Caves | Build established: Hacker-Mutant 6916 | -7/Deep Caves | Discovered new exit (range 7) 6918 | -7/Deep Caves | Entered Proximity Caves 6936 | -6/Proximity Caves | Identified Phasing AFG 6948 | -6/Proximity Caves | Core integrity fell below 50% 7001 | -6/Proximity Caves | Core integrity fell below 20% 7028 | -6/Proximity Caves | System corruption reached 10% 7038 | -6/Proximity Caves | Lost 9 parts (2p3n3u1w) 7087 | -6/Proximity Caves | Discovered new exit (range 13) 7098 | -6/Proximity Caves | Entered Factory 7098 | -6/Factory | Evolved 2 slots: Utility x2 7099 | -6/Factory | Identified exit to Lower Caves 7100 | -6/Factory | Loaded intel: 2 garrison access locations 7117 | -6/Factory | Identified exit to Extension 7117 | -6/Factory | Central database locked down 7282 | -6/Factory | Fabricated Falx? 7355 | -6/Factory | Fabricated Imp. Hacking Suite? 7407 | -6/Factory | Lost 3 parts (2u1w) 7491 | -6/Factory | Fabricated Imp. Hacking Suite (x1) 7503 | -6/Factory | Local fabrication network quarantined 7670 | -6/Factory | Repaired Gravmag System 7687 | -6/Factory | Repaired Imp. Gravmag System 7697 | -6/Factory | Entered Extension 7732 | -6/Extension | Central database locked down 7760 | -6/Extension | Rescued a captive Derelict 7761 | -6/Extension | Rescued a captive Derelict 7827 | -6/Extension | Crushed by falling debris 7832 | -6/Extension | Build established: Wizard-Mutant 7900 | -6/Extension | Energy Cycler disabled 7902 | -6/Extension | Rescued a captive Derelict 7935 | -6/Extension | Lost 5 parts (1p3n1u) 7979 | -6/Extension | Rescued A7 8097 | -6/Extension | Hacking Suite fried by hacking feedback 8176 | -6/Extension | Build established: Hacker-Mutant 8195 | -6/Extension | Discovered new exit (range 10) 8196 | -6/Extension | Discovered new exit (range 6) 8211 | -6/Extension | Entered Cetus 8211 | -6/Cetus | Accompanied by 6 allies (A7) 8216 | -6/Cetus | Acquired a Cetus Manufacturing Module code from A7 8228 | -6/Cetus | Spotted Cetus Guard 8228 | -6/Cetus | Spotted Cetus Guard 8237 | -6/Cetus | Spotted Cetus Guard 8242 | -6/Cetus | Spotted Cetus Guard 8248 | -6/Cetus | Extracted ID and sensor layout for unrecognized location from A7's data core 8260 | -6/Cetus | Destroyed Cetus Guard 8277 | -6/Cetus | Destroyed Cetus Guard 8280 | -6/Cetus | Core integrity fell below 50% 8295 | -6/Cetus | Destroyed Cetus Guard 8326 | -6/Cetus | Destroyed Cetus Guard 8361 | -6/Cetus | Core integrity fell below 20% 8361 | -6/Cetus | Released all parts (6) 8371 | -6/Cetus | Lost 14 parts (1p4n5u4w) 8374 | -6/Cetus | Started Cetus Manufacturing Module 8380 | -6/Cetus | Discovered new exit (range 15) 8388 | -6/Cetus | Entered Archives 8403 | -6/Archives | Discovered new exit (range 16) 8410 | -6/Archives | Entered Hub_04(d) 8562 | -6/Hub_04(d) | Destroyed by H-66 Slayer with Gauss Rifle Last Messages --------------- 08479_ ALERT: Hostiles spotted, dispatching reinforcements to Terminal H008. 08479_ O-24 Administrator locks terminal. 08484_ System corrupted: Heat flow error (+130). 08485_ Acquired System Shield. 08489_ Acquired Armor Integrity Analyzer. 08510_ K-01 Serf collects debris. 08511_ K-01 Serf destroyed. 08516_ K-01 Serf collects debris. 08519_ Centrium Heavy Treads destroyed. 08520_ K-01 Serf collects debris. 08525_ K-01 Serf destroyed. 08541_ System corrupted: Component data lost. 08550_ U-05 Engineer lays Concrete. 08554_ Penetrated by Slug. 08557_ U-05 Engineer destroyed. 08561_ K-01 Serf collects debris. 08562_ Penetrated by Slug. 08562_ Imp. Lightning Gun destroyed. 08562_ Penetrated by Slug. Map ----- +----------------------------------------------------+ | ?????????????????????????????????????????????????? | | ?????????????????????????????????????????????????? | | ?????????????????????????????????????????????????? | | ?????????????????????????????????????????????????? | | ?????????????????????????????????????????????????? | | ?????????????????????????????????????????????????? | | ?????????????????????????????????????????????????? | | ?????????????????????????????????????????????????? | | ?????????????????????????????????????????????????? | | ?????????????????????????????????????????????????? | | ?????????????????????????????????????????????????? | | ?????????????????????????????????????????????????? | | ?????????????????????????????????????????????????? | | ?????????????????????????#+##????????????????????? | | ????????????????????????? #????????????????????? | | ????????????????????????? +????????????????????? | | ????????????????????????? #????????????????????? | | ????????????????????????# #????????????????????? | | ????????????????????????# #????????????????????? | | ????????????????????????# #?###????????????????? | | ????????????????????????# # ?????????????????? | | ????????????????????????# # ??????????????????? | | ????????????????????????+ k/ ???????????????????? | | ????????????????????????# #????????????????????? | | ????????????????????????# #????????????????????? | | ????????????????????????#@ w#????????????????????? | | ????????????????????????# #????????????????????? | | ????????????????????????# #????????????????????? | | ????????????????????????# #????????????????????? | | ????????????????????????#k #????????????????????? | | ????????????????????????#u ######### ###????????? | | ????????????????????????# ?????? | | ??????????????????????? + ?????? | | ?????????????????????? # ##########+#?????????? | | ?????????????????????" # # #??????????????? | | ???????????????????""" ?# + #??????????????? | | ?????????????????? ??# # #??????????????? | | ??????????????????###???# ! #?? #??????????????? | | ????????????????????????#!%*#???? #??????????????? | | ????????????????????????# ! #???? #??????????????? | | ????????????????????????# Y #?? #??????????????? | | ???????????? ? "?"" ?# # #??????????????? | | ???????????# # ?# + #??????????????? | | ???????????# ? ?# # #??????????????? | | ???????????# #?? ?# #?? #??????????????? | | ???????????# #??? ?# #???? #??????????????? | | ???????????# #???? ?#!%=#????????????????????? | | ???????????# #?????#+##%= #????????????????????? | | ???????????# #?????# ! #????????????????????? | | ???????????# #?????# ^^ #????#####???????????? | +----------------------------------------------------+ Best States ------------- Heat Dissipation 60 Energy Generation 27 Energy Capacity 1775 Matter Stores 300 Matter Capacity 300 Sight Range 16 Robot Scan Range 20 Terrain Scan Density 10 Armor Coverage 450 Resistance: KI 20 Resistance: TH 20 Resistance: EX 20 Resistance: EM 20 Resistance: I 20 Resistance: S 20 Resistance: P 20 Propulsion Shielding 66 Evasion (%) 65 Melee Accuracy 5 Armor Integrity Analysis 35 Recoil Reduction 3 Salvage Targeting 1 Offensive Hacking 58 Defensive Hacking 14 Item Schematics ----------------- Huge Storage Unit | -10/Materials | Hacked Med. Storage Unit | -10/Materials | Hacked Imp. Flight Unit | -7/Factory | Hacked Hvy. Beamcaster | -7/Zion | Free Beamcaster | -7/Zion | Free Riot Gun | -7/Zion | Free Battle Rifle | -7/Zion | Free Slug Cannon | -7/Zion | Free Flamer | -7/Zion | Free Enh. Flamer | -7/Zion | Free Imp. Hacking Suite | -6/Factory | Hacked Adv. Sensor Array | -6/Factory | Hacked Adv. Armor Integrity Analyzer | -6/Extension | Hacked Hardcell Cannon | -6/Extension | Hacked Robot Schematics ------------------ None Fabricated ------------ Huge Storage Unit | x1 | -7/Factory Falx | x2 | -6/Factory | Preloaded Imp. Hacking Suite | x1 | -6/Factory Imp. Hacking Suite | x1 | -6/Factory Alien Tech Used ----------------- None Achievements -------------- None Challenges ------------ None Game ------ Seed CloakPointFlail Manual? 0 Play Time 01:19:19 Cumulative 322.4 hours Start 2021.03.26 @ 19:02:05 End 2021.03.26 @ 21:16:50 Sessions 3 Manual Loads 0 Difficulty Adventurer Special Mode None Game No. 318 Rogue 146 Adventurer 94 Explorer 78 Win Type - Total 23 Types 16/0/5/2/0/0/0/0/0 Lore% 80 Gallery% 88 Achievement% 70 Wizard Run 0 Options --------- ASCII 0 Keyboard 0 Movement Numpad Keybinds 0 Fullscreen 2 Font 18/TerminusBold Map View 76x50 Tactical HUD 1 Map Filters NONE Filters NONE Steam 1 RUN: 91d74edf-d06e-485a-a17f-1bc9171c4610